[Event "23rd European Women Club Cup 2018"]
[Site "Halkidiki"]
[Date "2018.10.18"]
[Round "7"]
[White "Grapsa, Georgia"]
[Black "De Rosa, Mariagrazia"]
[Result "1-0"]
[ECO "E63"]
[WhiteElo "2085"]
[BlackElo "2131"]
[Annotator "NA"]
[PlyCount "89"]
[EventDate "2018.10.12"]
[EventType "team-tourn"]
[EventCountry "GRE"]
[SourceTitle "playchess.com"]
[Source "ChessBase"]
[SourceQuality "1"]
[WhiteTeam "Thessaloniki"]
[BlackTeam "Banca Alpi Marittime"]
[TimeControl "40/5400+30:1800+30"]

1. d4 {[%emt 0:00:00]} Nf6 {[%emt 0:00:00]} 2. c4 {[%emt 0:00:00]} g6 {[%emt 0:00:00]} 3. g3 {[%emt 0:00:00]} Bg7 {[%emt 0:00:00]} 4. Bg2 {[%emt 0:00:00]} O-O {[%emt 0:00:05]} 5. Nf3 {[%emt 0:00:00]} d6 {[%emt 0:00:09]} 6. O-O {[%emt 0:00:00]} Nc6 {[%emt 0:00:11]} 7. Nc3 {[%emt 0:00:00]} a6 {[%emt 0:00:13]} 8. e4 {[%emt 0:00:19]} Bg4 {[%emt 0:09:58]} 9. Be3 {[%emt 0:00:04]} Nd7 {[%emt 0:00:46]} 10. Qd2 {[%emt 0:04:21]} Bxf3 {[%emt 0:10:19]} 11. Bxf3 {[%emt 0:01:35]} e5 {[%emt 0:00:24]} 12. d5 {[%emt 0:00:02]} Nd4 {[%emt 0:03:03]} 13. Bg2 {[%emt 0:00:04]} c5 {[%emt 0:03:18]} 14. dxc6 {[%emt 0:00:05]} bxc6 {[%emt 0:00:13]} 15. f4 {[%emt 0:00:06]} Nb6 {[%emt 0:15:20]} 16. b3 {[%emt 0:00:51]} a5 {[%emt 0:00:09]} 17. f5 {[%emt 0:02:53]} a4 {[%emt 0:01:31]} 18. Qf2 {[%emt 0:05:21]} axb3 {[%emt 0:06:34]} 19. axb3 {[%emt 0:00:18]} Nd7 {[%emt 0:01:43]} 20. b4 {[%emt 0:04:13]} Rxa1 {[%emt 0:04:17]} 21. Rxa1 {[%emt 0:01:06]} Nf6 {[%emt 0:08:42]} 22. h3 {[%emt 0:05:32]} d5 {[%emt 0:07:39]} 23. exd5 {[%emt 0:09:23]} cxd5 {[%emt 0:01:18]} 24. Nxd5 {[%emt 0:04:13]} Nxf5 {[%emt 0:08:18]} 25. Bb6 {[%emt 0:06:56]} Qb8 {[%emt 0:04:07]} 26. Bc7 {[%emt 0:05:57]} Qc8 {[%emt 0:03:02]} 27. Ra8 {[%emt 0:10:30]} Qe6 {[%emt 0:01:03]} 28. Rxf8+ {[%emt 0:00:19]} Kxf8 {[%emt 0:02:31]} 29. Qc5+ {[%emt 0:01:42]} Kg8 {[%emt 0:00:09]} 30. g4 {[%emt 0:03:08]} Nh4 {[%emt 0:02:18]} 31. Ne7+ {[%emt 0:10:50]} Kh8 {[%emt 0:00:05]} 32. Bxe5 {[%emt 0:00:39]} Nxg2 {[%emt 0:06:42]} 33. Kxg2 {[%emt 0:00:21]} Ng8 {[%emt 0:00:43]} 34. Bxg7+ {[%emt 0:01:54]} Kxg7 {[%emt 0:00:04]} 35. Qd4+ {[%emt 0:00:49]} f6 {[%emt 0:01:04]} 36. Nxg8 {[%emt 0:00:36]} Qe2+ {[%emt 0:00:39]} 37. Qf2 {[%emt 0:00:38]} Qe4+ {[%emt 0:01:18]} 38. Qf3 {[%emt 0:02:25]} Qxc4 {[%emt 0:00:33]} 39. Nxf6 {[%emt 0:00:44]} Qc2+ {[%emt 0:00:30]} 40. Kg3 {[%emt 0:00:00]} Qc7+ {[%emt 0:00:00]} 41. Kh4 {[%emt 0:03:04]} Qe5 {[%emt 0:18:44]} 42. Ne4 {[%emt 0:04:23]} g5+ {[%emt 0:03:58]} 43. Nxg5 {[%emt 0:00:34]} Qe1+ {[%emt 0:00:09]} 44. Kh5 {[%emt 0:00:12]} Qe8+ {[%emt 0:00:41]} 45. Qf7+ {[%emt 0:00:05]} 1-0

[Event "23rd European Women Club Cup 2018"]
[Site "Halkidiki"]
[Date "2018.10.18"]
[Round "7"]
[White "Andolfatto, Maria"]
[Black "Tsivelekidou, Anthoula Elpida"]
[Result "1-0"]
[ECO "A13"]
[WhiteElo "2068"]
[BlackElo "1147"]
[Annotator "NA"]
[PlyCount "63"]
[EventDate "2018.10.12"]
[EventType "team-tourn"]
[EventCountry "GRE"]
[SourceTitle "playchess.com"]
[Source "ChessBase"]
[SourceQuality "1"]
[WhiteTeam "Banca Alpi Marittime"]
[BlackTeam "Thessaloniki"]
[TimeControl "40/5400+30:1800+30"]

1. Nf3 {[%emt 0:00:00]} d5 {[%emt 0:00:00]} 2. c4 {[%emt 0:00:00]} e6 {[%emt 0:00:00]} 3. g3 {[%emt 0:00:00]} Nf6 {[%emt 0:00:04]} 4. Bg2 {[%emt 0:00:03]} b6 {[%emt 0:00:14]} 5. O-O {[%emt 0:00:28]} Bb7 {[%emt 0:00:06]} 6. d4 {[%emt 0:00:59]} Nbd7 {[%emt 0:01:02]} 7. Bf4 {[%emt 0:06:06]} c5 {[%emt 0:00:52]} 8. cxd5 {[%emt 0:06:29]} Bxd5 {[%emt 0:02:06]} 9. Nc3 {[%emt 0:02:02]} Be7 {[%emt 0:00:54]} 10. Rc1 {[%emt 0:03:11]} O-O {[%emt 0:01:31]} 11. Re1 {[%emt 0:08:58]} Rc8 {[%emt 0:02:07]} 12. e4 {[%emt 0:03:45]} Bb7 {[%emt 0:01:11]} 13. d5 {[%emt 0:01:33]} exd5 {[%emt 0:06:03]} 14. exd5 {[%emt 0:01:17]} Re8 {[%emt 0:00:22]} 15. Nd2 {[%emt 0:04:21]} Bf8 {[%emt 0:01:02]} 16. a4 {[%emt 0:03:38]} a6 {[%emt 0:01:28]} 17. Nc4 {[%emt 0:05:07]} Nb8 {[%emt 0:13:37]} 18. Rxe8 {[%emt 0:05:31]} Nxe8 {[%emt 0:00:12]} 19. Bh3 {[%emt 0:00:21]} Rc7 {[%emt 0:02:39]} 20. Bxc7 {[%emt 0:02:06]} Qxc7 {[%emt 0:00:09]} 21. Qb3 {[%emt 0:01:35]} Nd6 {[%emt 0:05:58]} 22. Qxb6 {[%emt 0:01:45]} Qxb6 {[%emt 0:00:58]} 23. Nxb6 {[%emt 0:00:07]} g6 {[%emt 0:01:26]} 24. Re1 {[%emt 0:02:05]} Kg7 {[%emt 0:00:45]} 25. Ne4 {[%emt 0:01:48]} Ne8 {[%emt 0:01:41]} 26. Rc1 {[%emt 0:02:32]} Nf6 {[%emt 0:00:58]} 27. Nxf6 {[%emt 0:01:15]} Kxf6 {[%emt 0:00:05]} 28. b4 {[%emt 0:00:37]} Ke5 {[%emt 0:04:20]} 29. bxc5 {[%emt 0:00:33]} Bxd5 {[%emt 0:01:14]} 30. Bg2 {[%emt 0:00:29]} Bxg2 {[%emt 0:01:28]} 31. Kxg2 {[%emt 0:00:06]} Nc6 {[%emt 0:00:06]} 32. Nd7+ {[%emt 0:00:06]} 1-0

[Event "23rd European Women Club Cup 2018"]
[Site "Halkidiki"]
[Date "2018.10.18"]
[Round "7"]
[White "Kumanska, Olena"]
[Black "Tsolakidou, Stavroula"]
[Result "0-1"]
[ECO "A21"]
[WhiteElo "2054"]
[BlackElo "2393"]
[Annotator "NA RC"]
[PlyCount "64"]
[EventDate "2018.10.12"]
[EventType "team-tourn"]
[EventCountry "GRE"]
[SourceTitle "playchess.com"]
[Source "ChessBase"]
[SourceQuality "1"]
[WhiteTeam "Beer Sheva"]
[BlackTeam "Pentole Agnelli"]
[TimeControl "40/5400+30:1800+30"]

1. c4 {[%emt 0:00:00]} e5 {[%emt 0:00:00]} 2. Nc3 {[%emt 0:00:00]} Bb4 {[%emt 0:00:00]} 3. e4 {[%emt 0:00:34]} Nc6 {[%emt 0:04:40]} 4. a3 {[%emt 0:00:21]} Bxc3 {[%emt 0:03:26]} 5. bxc3 {[%emt 0:00:16]} d6 {[%emt 0:00:20]} 6. d3 {[%emt 0:00:13]} f5 {[%emt 0:04:05]} 7. Nf3 {[%emt 0:03:36]} fxe4 {[%emt 0:01:47]} 8. dxe4 {[%emt 0:00:02]} Nf6 {[%emt 0:00:08]} 9. Qd3 {[%emt 0:02:53]} O-O {[%emt 0:02:11]} 10. h3 {[%emt 0:01:05]} Qe8 {[%emt 0:01:32]} 11. Bg5 {[%emt 0:01:45]} Be6 {[%emt 0:09:19]} 12. Bxf6 {[%emt 0:02:51]} Rxf6 {[%emt 0:00:06]} 13. Be2 {[%emt 0:06:24]} Qg6 {[%emt 0:01:49]} 14. g4 {[%emt 0:11:26]} Raf8 {[%emt 0:04:49]} 15. Rf1 {[%emt 0:05:36]} Na5 {[%emt 0:26:49]} 16. Nd2 {[%emt 0:00:14]} Qg5 {[%emt 0:04:58]} 17. f3 {[%emt 0:00:58]} Qh4+ {[%emt 0:01:03]} 18. Kd1 {[%emt 0:00:07]} Qxh3 {[%emt 0:00:34]} 19. Kc2 {[%emt 0:00:08]} Qh6 {[%emt 0:01:23]} 20. Rh1 {[%emt 0:01:27]} Qf4 {[%emt 0:00:21]} 21. Rag1 {[%emt 0:05:36]} R6f7 {[%emt 0:03:36]} 22. Rh5 {[%emt 0:01:41]} g6 {[%emt 0:01:51]} 23. Rh4 {[%emt 0:00:44]} Rd7 {[%emt 0:00:37]} 24. Bf1 {[%emt 0:01:31]} c6 {[%emt 0:03:35]} 25. Qe2 {[%emt 0:00:20]} d5 {[%emt 0:03:42]} 26. Qe1 {[%emt 0:00:49]} dxc4 {[%emt 0:02:50]} 27. Rgh1 {[%emt 0:02:41]} Rfd8 {[%emt 0:01:16]} 28. R1h2 {[%emt 0:00:13]} Qg5 {[%emt 0:00:52]} 29. f4 {[%emt 0:01:55]} Qxf4 {[%emt 0:06:33]} 30. Rf2 {[%emt 0:00:32]} Qg5 {[%emt 0:00:54]} 31. Nf3 {[%emt 0:01:29]} Qe7 {[%emt 0:00:05]} 32. Nxe5 {[%emt 0:01:49]} Rd1 {[%emt 0:02:31]} 0-1

[Event "23rd European Women Club Cup 2018"]
[Site "Halkidiki"]
[Date "2018.10.18"]
[Round "7"]
[White "Santeramo, Alessia"]
[Black "Petraki, Evaggelia"]
[Result "1-0"]
[ECO "B07"]
[WhiteElo "2054"]
[BlackElo "1769"]
[Annotator "NA"]
[PlyCount "49"]
[EventDate "2018.10.12"]
[EventType "team-tourn"]
[EventCountry "GRE"]
[SourceTitle "playchess.com"]
[Source "ChessBase"]
[SourceQuality "1"]
[WhiteTeam "Banca Alpi Marittime"]
[BlackTeam "Thessaloniki"]
[TimeControl "40/5400+30:1800+30"]

1. e4 {[%emt 0:00:00]} d6 {[%emt 0:00:00]} 2. d4 {[%emt 0:00:00]} Nf6 {[%emt 0:00:00]} 3. Nc3 {[%emt 0:00:00]} g6 {[%emt 0:00:00]} 4. Be3 {[%emt 0:00:04]} Bg7 {[%emt 0:00:00]} 5. Qd2 {[%emt 0:00:58]} O-O {[%emt 0:00:18]} 6. Nf3 {[%emt 0:02:44]} c6 {[%emt 0:00:18]} 7. h3 {[%emt 0:01:59]} b5 {[%emt 0:00:43]} 8. Bd3 {[%emt 0:00:22]} Bb7 {[%emt 0:05:57]} 9. e5 {[%emt 0:08:51]} b4 {[%emt 0:00:36]} 10. Ne2 {[%emt 0:02:25]} Nd5 {[%emt 0:00:32]} 11. Bh6 {[%emt 0:00:35]} c5 {[%emt 0:06:19]} 12. h4 {[%emt 0:08:40]} Re8 {[%emt 0:08:59]} 13. Bxg7 {[%emt 0:09:48]} Kxg7 {[%emt 0:00:06]} 14. h5 {[%emt 0:00:07]} Rh8 {[%emt 0:00:07]} 15. O-O-O {[%emt 0:09:55]} Qc8 {[%emt 0:07:00]} 16. dxc5 {[%emt 0:08:48]} dxc5 {[%emt 0:00:47]} 17. Be4 {[%emt 0:01:00]} e6 {[%emt 0:00:53]} 18. Bxd5 {[%emt 0:02:56]} Bxd5 {[%emt 0:00:44]} 19. Nf4 {[%emt 0:00:27]} Bxa2 {[%emt 0:02:25]} 20. h6+ {[%emt 0:00:18]} Kf8 {[%emt 0:00:39]} 21. Qd8+ {[%emt 0:00:12]} Qxd8 {[%emt 0:00:30]} 22. Rxd8+ {[%emt 0:00:06]} Ke7 {[%emt 0:00:07]} 23. Rxh8 {[%emt 0:00:09]} b3 {[%emt 0:00:08]} 24. Ng5 {[%emt 0:01:12]} bxc2 {[%emt 0:00:17]} 25. Rxh7 {[%emt 0:00:34]} 1-0

[Event "23rd European Women Club Cup 2018"]
[Site "Halkidiki"]
[Date "2018.10.18"]
[Round "7"]
[White "Lagogianni, Niki Vasiliki"]
[Black "Guerini, Silvia jr"]
[Result "0-1"]
[ECO "B40"]
[WhiteElo "1152"]
[BlackElo "1977"]
[Annotator "NA"]
[PlyCount "122"]
[EventDate "2018.10.12"]
[EventType "team-tourn"]
[EventCountry "GRE"]
[SourceTitle "playchess.com"]
[Source "ChessBase"]
[SourceQuality "1"]
[WhiteTeam "Thessaloniki"]
[BlackTeam "Banca Alpi Marittime"]
[TimeControl "40/5400+30:1800+30"]

1. e4 {[%emt 0:00:00]} c5 {[%emt 0:00:00]} 2. Nf3 {[%emt 0:00:32]} e6 {[%emt 0:00:00]} 3. d4 {[%emt 0:00:55]} cxd4 {[%emt 0:00:00]} 4. Nxd4 {[%emt 0:00:07]} Nf6 {[%emt 0:00:04]} 5. Bd3 {[%emt 0:01:28]} d6 {[%emt 0:01:12]} 6. O-O {[%emt 0:01:43]} Be7 {[%emt 0:00:36]} 7. Be3 {[%emt 0:03:53]} O-O {[%emt 0:00:52]} 8. Nf3 {[%emt 0:00:50]} Nc6 {[%emt 0:02:11]} 9. Nc3 {[%emt 0:01:03]} Ng4 {[%emt 0:09:25]} 10. Bd2 {[%emt 0:03:01]} a6 {[%emt 0:00:51]} 11. h3 {[%emt 0:00:36]} Nf6 {[%emt 0:02:50]} 12. Re1 {[%emt 0:01:20]} Bd7 {[%emt 0:03:50]} 13. e5 {[%emt 0:14:26]} dxe5 {[%emt 0:02:37]} 14. Nxe5 {[%emt 0:00:18]} Nxe5 {[%emt 0:00:12]} 15. Rxe5 {[%emt 0:00:08]} Qc7 {[%emt 0:01:19]} 16. Re1 {[%emt 0:01:17]} Bc6 {[%emt 0:01:35]} 17. Ne4 {[%emt 0:01:35]} Rfd8 {[%emt 0:03:06]} 18. Qc1 {[%emt 0:05:04]} Nd5 {[%emt 0:10:26]} 19. a3 {[%emt 0:02:38]} Rac8 {[%emt 0:01:31]} 20. Bg5 {[%emt 0:05:34]} Bxg5 {[%emt 0:16:05]} 21. Qxg5 {[%emt 0:01:42]} Qf4 {[%emt 0:00:22]} 22. Qxf4 {[%emt 0:02:03]} Nxf4 {[%emt 0:01:32]} 23. Rad1 {[%emt 0:01:54]} Nxd3 {[%emt 0:03:09]} 24. Rxd3 {[%emt 0:01:06]} Rxd3 {[%emt 0:00:21]} 25. cxd3 {[%emt 0:00:37]} Rd8 {[%emt 0:00:33]} 26. Re3 {[%emt 0:00:46]} b6 {[%emt 0:02:06]} 27. f3 {[%emt 0:00:45]} Bb5 {[%emt 0:01:01]} 28. Nf2 {[%emt 0:00:08]} Rc8 {[%emt 0:01:09]} 29. Re2 {[%emt 0:00:09]} Rc1+ {[%emt 0:00:33]} 30. Kh2 {[%emt 0:00:13]} Kf8 {[%emt 0:00:47]} 31. Rd2 {[%emt 0:00:19]} Ba4 {[%emt 0:01:56]} 32. Kg3 {[%emt 0:01:07]} Ke7 {[%emt 0:04:22]} 33. f4 {[%emt 0:01:26]} f5 {[%emt 0:06:50]} 34. d4 {[%emt 0:01:22]} Kd6 {[%emt 0:01:18]} 35. Nd3 {[%emt 0:01:02]} Rc2 {[%emt 0:00:09]} 36. Ne5 {[%emt 0:03:21]} Rxd2 {[%emt 0:00:22]} 37. Nc4+ {[%emt 0:00:06]} Kd5 {[%emt 0:00:17]} 38. Nxd2 {[%emt 0:00:40]} Kxd4 {[%emt 0:00:08]} 39. Nf3+ {[%emt 0:00:13]} Kd5 {[%emt 0:01:35]} 40. Kf2 {[%emt 0:00:00]} h6 {[%emt 0:00:00]} 41. Ke3 {[%emt 0:00:51]} Bc6 {[%emt 0:11:51]} 42. b3 {[%emt 0:01:07]} Kd6 {[%emt 0:02:31]} 43. Ne1 {[%emt 0:00:29]} Be4 {[%emt 0:03:05]} 44. Kd4 {[%emt 0:00:40]} g5 {[%emt 0:00:43]} 45. g3 {[%emt 0:00:45]} gxf4 {[%emt 0:06:06]} 46. gxf4 {[%emt 0:00:26]} Bd5 {[%emt 0:01:37]} 47. Kc3 {[%emt 0:01:10]} e5 {[%emt 0:01:21]} 48. Nd3 {[%emt 0:00:32]} exf4 {[%emt 0:00:28]} 49. Nxf4 {[%emt 0:00:12]} Ke5 {[%emt 0:00:42]} 50. Nxd5 {[%emt 0:00:36]} Kxd5 {[%emt 0:02:06]} 51. Kd3 {[%emt 0:00:15]} f4 {[%emt 0:00:58]} 52. h4 {[%emt 0:00:39]} Ke5 {[%emt 0:00:26]} 53. Ke2 {[%emt 0:00:40]} Ke4 {[%emt 0:00:08]} 54. h5 {[%emt 0:00:11]} Kf5 {[%emt 0:00:37]} 55. Kf3 {[%emt 0:00:25]} Kg5 {[%emt 0:00:13]} 56. b4 {[%emt 0:00:21]} b5 {[%emt 0:00:07]} 57. Ke4 {[%emt 0:00:40]} Kg4 {[%emt 0:00:08]} 58. Kd5 {[%emt 0:00:08]} f3 {[%emt 0:00:11]} 59. Kc6 {[%emt 0:00:07]} f2 {[%emt 0:00:09]} 60. Kb6 {[%emt 0:00:11]} f1=Q {[%emt 0:00:10]} 61. Kxa6 {[%emt 0:00:06]} Qd3 {[%emt 0:00:32]} 0-1